[Event "POL-chT 2nd League Juniors 2020"]
[Site "Sypniewo"]
[Date "2020.10.23"]
[Round "1.12"]
[White "Bialek, Alicja"]
[Black "Mainka, Anna"]
[Result "1-0"]
[ECO "B30"]
[WhiteElo "1457"]
[BlackElo "1280"]
[Annotator "NA"]
[PlyCount "127"]
[EventDate "2020.10.23"]
[EventType "team-tourn"]
[EventCountry "POL"]
[SourceTitle "playchess.com"]
[Source "ChessBase"]
[SourceQuality "1"]
[TimeControl "5400+30"]

1. e4 c5 {[%emt 0:00:00]} 2. Nf3 Nc6 3. b3 {[%emt 0:02:07]} e6 {[%emt 0:01:00]} 4. Bb2 {[%emt 0:00:13]} d5 {[%emt 0:00:50]} 5. exd5 {[%emt 0:01:11]} exd5 {[%emt 0:00:07]} 6. Bb5 {[%emt 0:12:19]} Bd7 {[%emt 0:02:00]} 7. O-O {[%emt 0:07:33]} Nf6 {[%emt 0:01:00]} 8. Re1+ {[%emt 0:00:33]} Be7 {[%emt 0:00:08]} 9. Bxf6 {[%emt 0:16:01]} gxf6 {[%emt 0:00:13]} 10. d4 {[%emt 0:08:00]} Be6 {[%emt 0:07:47]} 11. dxc5 {[%emt 0:01:02]} Bxc5 {[%emt 0:00:32]} 12. Nc3 {[%emt 0:11:48]} Bb4 {[%emt 0:05:10]} 13. Qxd5 {[%emt 0:04:42]} O-O {[%emt 0:03:30]} 14. Qxd8 {[%emt 0:09:41]} Raxd8 {[%emt 0:00:34]} 15. Re3 {[%emt 0:00:33]} Bxc3 {[%emt 0:00:36]} 16. Rxc3 {[%emt 0:00:13]} Ne5 {[%emt 0:00:53]} 17. Re1 {[%emt 0:05:56]} Nxf3+ {[%emt 0:00:55]} 18. Rxf3 {[%emt 0:00:08]} f5 {[%emt 0:02:14]} 19. Bd3 {[%emt 0:00:28]} Rd5 {[%emt 0:02:44]} 20. c4 {[%emt 0:14:09]} Rc5 {[%emt 0:01:11]} 21. a4 {[%emt 0:01:26]} Rd8 {[%emt 0:00:48]} 22. b4 {[%emt 0:01:25]} Rc7 {[%emt 0:00:28]} 23. c5 {[%emt 0:00:43]} Rcd7 {[%emt 0:00:38]} 24. Bxf5 {[%emt 0:00:50]} Bxf5 {[%emt 0:00:07]} 25. Rxf5 {[%emt 0:00:02]} Rd4 {[%emt 0:00:20]} 26. b5 {[%emt 0:00:55]} Rxa4 {[%emt 0:00:15]} 27. h3 {[%emt 0:00:19]} Rb4 {[%emt 0:01:10]} 28. Re7 {[%emt 0:00:39]} Rxb5 {[%emt 0:00:48]} 29. Rfxf7 {[%emt 0:00:10]} Rxc5 {[%emt 0:00:50]} 30. Rxb7 {[%emt 0:00:20]} a5 {[%emt 0:00:14]} 31. Rxh7 {[%emt 0:00:29]} Rg5 {[%emt 0:00:34]} 32. Rhd7 {[%emt 0:01:03]} Ra8 {[%emt 0:00:28]} 33. Ra7 {[%emt 0:00:07]} Rb8 {[%emt 0:00:29]} 34. Rd6 {[%emt 0:01:04]} Rgb5 {[%emt 0:00:48]} 35. Rda6 {[%emt 0:00:14]} Rb1+ {[%emt 0:00:09]} 36. Kh2 {[%emt 0:00:04]} R1b2 {[%emt 0:00:11]} 37. Rxa5 {[%emt 0:00:47]} Rxf2 {[%emt 0:00:07]} 38. Ra2 {[%emt 0:00:07]} Rf6 {[%emt 0:00:13]} 39. h4 {[%emt 0:00:14]} Rb4 {[%emt 0:00:52]} 40. R7a4 {[%emt 0:00:51]} Rb5 {[%emt 0:00:11]} 41. Kh3 {[%emt 0:00:32]} Kg7 {[%emt 0:00:06]} 42. Ra5 {[%emt 0:00:19]} Rbb6 {[%emt 0:00:12]} 43. h5 {[%emt 0:00:18]} Kh6 {[%emt 0:00:05]} 44. Kh4 {[%emt 0:00:24]} Rf1 {[%emt 0:00:46]} 45. Ra6 {[%emt 0:00:15]} Rh1+ {[%emt 0:00:21]} 46. Kg4 {[%emt 0:00:08]} Rxa6 {[%emt 0:00:18]} 47. Rxa6+ {[%emt 0:00:03]} Kh7 {[%emt 0:00:06]} 48. Kg5 {[%emt 0:00:16]} Rh2 {[%emt 0:00:08]} 49. g4 {[%emt 0:00:07]} Rb2 {[%emt 0:00:06]} 50. Ra7+ {[%emt 0:00:22]} Kh8 {[%emt 0:00:09]} 51. h6 {[%emt 0:00:18]} Rb5+ {[%emt 0:00:16]} 52. Kg6 {[%emt 0:00:22]} Rb6+ {[%emt 0:00:10]} 53. Kh5 {[%emt 0:00:02]} Rb5+ {[%emt 0:00:11]} 54. g5 {[%emt 0:00:13]} Rc5 {[%emt 0:00:28]} 55. Rf7 {[%emt 0:01:10]} Rd5 {[%emt 0:00:13]} 56. Kg6 {[%emt 0:00:41]} Rd6+ {[%emt 0:00:13]} 57. Rf6 {[%emt 0:00:05]} Rd8 {[%emt 0:00:16]} 58. Rf5 {[%emt 0:03:26]} Rd6+ {[%emt 0:01:24]} 59. Kh5 {[%emt 0:00:17]} Rd8 {[%emt 0:01:21]} 60. g6 {[%emt 0:00:33]} Ra8 {[%emt 0:01:47]} 61. h7 {[%emt 0:00:33]} Kg7 {[%emt 0:02:52]} 62. Rf7+ {[%emt 0:00:14]} Kh8 {[%emt 0:00:07]} 63. Kh6 {[%emt 0:00:08]} Ra6 {[%emt 0:00:20]} 64. Rf8# {[%emt 0:00:08]} 1-0

[Event "POL-chT 2nd League Juniors 2020"]
[Site "Sypniewo"]
[Date "2020.10.23"]
[Round "1.13"]
[White "Gardian, Adam"]
[Black "Wnek, Filip"]
[Result "1/2-1/2"]
[ECO "B84"]
[WhiteElo "1859"]
[BlackElo "1981"]
[Annotator "ChessBase"]
[PlyCount "78"]
[EventDate "2020.10.23"]
[EventType "team-tourn"]
[EventCountry "POL"]
[SourceTitle "playchess.com"]
[Source "ChessBase"]
[SourceQuality "1"]
[TimeControl "5400+30"]

1. e4 {[%emt 0:00:00]} c5 {[%emt 0:00:00]} 2. Nf3 {[%emt 0:00:00]} d6 {[%emt 0:00:10]} 3. d4 {[%emt 0:00:00]} cxd4 {[%emt 0:00:07]} 4. Nxd4 {[%emt 0:00:00]} Nf6 {[%emt 0:00:24]} 5. Nc3 {[%emt 0:00:00]} a6 {[%emt 0:00:26]} 6. Be2 {[%emt 0:00:00]} e6 {[%emt 0:00:38]} 7. Be3 {[%emt 0:00:30]} Nbd7 {[%emt 0:00:42]} 8. O-O {[%emt 0:00:26]} b5 {[%emt 0:00:39]} 9. f3 {[%emt 0:18:00]} Bb7 {[%emt 0:01:36]} 10. a3 {[%emt 0:05:13]} Be7 {[%emt 0:00:19]} 11. g4 {[%emt 0:01:07]} Nb6 {[%emt 0:07:39]} 12. Qe1 {[%emt 0:02:39]} O-O {[%emt 0:06:36]} 13. g5 {[%emt 0:03:53]} Nfd7 {[%emt 0:07:19]} 14. Qg3 {[%emt 0:09:59]} Ne5 {[%emt 0:05:00]} 15. Rad1 {[%emt 0:01:23]} Nec4 {[%emt 0:10:54]} 16. Bc1 {[%emt 0:00:53]} Qc8 {[%emt 0:01:24]} 17. f4 {[%emt 0:04:06]} d5 {[%emt 0:06:18]} 18. e5 {[%emt 0:02:35]} Bc5 {[%emt 0:07:17]} 19. b4 {[%emt 0:03:32]} Bxd4+ {[%emt 0:02:11]} 20. Rxd4 {[%emt 0:01:36]} Rd8 {[%emt 0:01:19]} 21. Bg4 {[%emt 0:17:41]} Qc7 {[%emt 0:04:02]} 22. Rf3 {[%emt 0:04:33]} Nd7 {[%emt 0:00:56]} 23. Qh4 {[%emt 0:06:40]} Nf8 {[%emt 0:01:22]} 24. Rh3 {[%emt 0:01:54]} Qb6 {[%emt 0:10:07]} 25. Ne2 {[%emt 0:00:17]} Re8 {[%emt 0:02:26]} 26. Be3 {[%emt 0:02:46]} Nxe3 {[%emt 0:01:50]} 27. Rxe3 {[%emt 0:00:04]} a5 {[%emt 0:00:51]} 28. Qf2 {[%emt 0:02:58]} axb4 {[%emt 0:01:21]} 29. axb4 {[%emt 0:01:06]} Ra1+ {[%emt 0:00:47]} 30. Kg2 {[%emt 0:00:08]} Rc8 {[%emt 0:05:01]} 31. c3 {[%emt 0:01:44]} Rc4 {[%emt 0:01:08]} 32. Kg3 {[%emt 0:00:29]} Ra2 {[%emt 0:01:44]} 33. Qe1 {[%emt 0:00:59]} Ng6 {[%emt 0:01:39]} 34. Qb1 {[%emt 0:03:59]} Qa7 {[%emt 0:04:13]} 35. Qd3 {[%emt 0:02:49]} Ne7 {[%emt 0:07:04]} 36. Rxc4 {[%emt 0:01:53]} bxc4 {[%emt 0:00:03]} 37. Qd4 {[%emt 0:00:14]} Nc6 {[%emt 0:00:50]} 38. Qxa7 {[%emt 0:00:08]} Rxa7 {[%emt 0:00:06]} 39. f5 {[%emt 0:01:43]} exf5 {[%emt 0:01:55]} 1/2-1/2

[Event "POL-chT 2nd League Juniors 2020"]
[Site "Sypniewo"]
[Date "2020.10.23"]
[Round "1.14"]
[White "Kolodziej, Oskar"]
[Black "Kubica, Dominik"]
[Result "1/2-1/2"]
[ECO "B13"]
[WhiteElo "1242"]
[BlackElo "1577"]
[Annotator "NA"]
[PlyCount "75"]
[EventDate "2020.10.23"]
[EventType "team-tourn"]
[EventCountry "POL"]
[SourceTitle "playchess.com"]
[Source "ChessBase"]
[SourceQuality "1"]
[TimeControl "5400+30"]

1. e4 {[%emt 0:00:00]} c6 {[%emt 0:00:00]} 2. d4 {[%emt 0:00:00]} d5 {[%emt 0:00:00]} 3. exd5 {[%emt 0:00:08]} cxd5 {[%emt 0:00:00]} 4. Nf3 {[%emt 0:00:47]} Bg4 {[%emt 0:01:34]} 5. c3 {[%emt 0:02:52]} Nf6 {[%emt 0:03:10]} 6. Bf4 {[%emt 0:04:34]} e6 {[%emt 0:03:02]} 7. Bd3 {[%emt 0:04:05]} Bd6 {[%emt 0:02:03]} 8. Bxd6 {[%emt 0:05:34]} Qxd6 {[%emt 0:00:16]} 9. Nbd2 {[%emt 0:02:58]} Nc6 {[%emt 0:05:10]} 10. O-O {[%emt 0:07:40]} O-O {[%emt 0:02:27]} 11. Re1 {[%emt 0:04:47]} Rab8 {[%emt 0:04:02]} 12. a4 {[%emt 0:07:55]} Rfc8 {[%emt 0:05:59]} 13. Qe2 {[%emt 0:07:05]} Ne7 {[%emt 0:10:53]} 14. h3 {[%emt 0:03:50]} Bh5 {[%emt 0:03:59]} 15. Nf1 {[%emt 0:03:23]} a6 {[%emt 0:06:22]} 16. Ng3 {[%emt 0:03:22]} Bg6 {[%emt 0:01:43]} 17. Ne5 {[%emt 0:03:54]} Bxd3 {[%emt 0:04:01]} 18. Qxd3 {[%emt 0:01:37]} Ng6 {[%emt 0:06:02]} 19. Nf3 {[%emt 0:01:59]} b5 {[%emt 0:07:21]} 20. axb5 {[%emt 0:03:11]} axb5 {[%emt 0:01:54]} 21. Rec1 {[%emt 0:03:22]} b4 {[%emt 0:14:13]} 22. Rc2 {[%emt 0:10:44]} Qc6 {[%emt 0:14:03]} 23. Rac1 {[%emt 0:03:55]} b3 {[%emt 0:01:01]} 24. Rd2 {[%emt 0:00:35]} Ra8 {[%emt 0:00:52]} 25. Qf1 {[%emt 0:01:47]} Ra2 {[%emt 0:00:28]} 26. Rb1 {[%emt 0:00:40]} h5 {[%emt 0:01:18]} 27. h4 {[%emt 0:01:45]} Ne4 {[%emt 0:00:14]} 28. Nxe4 {[%emt 0:02:07]} dxe4 {[%emt 0:00:06]} 29. Ne5 {[%emt 0:00:13]} Nxe5 {[%emt 0:00:26]} 30. dxe5 {[%emt 0:00:07]} Qc5 {[%emt 0:00:46]} 31. Qd1 {[%emt 0:03:52]} Rb8 {[%emt 0:00:40]} 32. Rd8+ {[%emt 0:01:02]} Rxd8 {[%emt 0:00:11]} 33. Qxd8+ {[%emt 0:00:05]} Kh7 {[%emt 0:00:17]} 34. Qg5 {[%emt 0:00:28]} g6 {[%emt 0:01:14]} 35. Qf4 {[%emt 0:00:36]} Qd5 {[%emt 0:01:03]} 36. Qxf7+ {[%emt 0:00:26]} Kh6 {[%emt 0:00:12]} 37. Qf8+ {[%emt 0:01:06]} Kh7 {[%emt 0:00:07]} 38. Qf7+ {[%emt 0:00:14]} 1/2-1/2

[Event "POL-chT 2nd League Juniors 2020"]
[Site "Sypniewo"]
[Date "2020.10.23"]
[Round "1.15"]
[White "Zaborski, Igor"]
[Black "Rainer, Piotr"]
[Result "1/2-1/2"]
[ECO "D05"]
[WhiteElo "1612"]
[BlackElo "1763"]
[Annotator "NA"]
[PlyCount "91"]
[EventDate "2020.10.23"]
[EventType "team-tourn"]
[EventCountry "POL"]
[SourceTitle "playchess.com"]
[Source "ChessBase"]
[SourceQuality "1"]
[TimeControl "5400+30"]

1. d4 {[%emt 0:00:00]} Nf6 {[%emt 0:00:00]} 2. Nf3 {[%emt 0:00:00]} d5 {[%emt 0:00:45]} 3. e3 {[%emt 0:00:05]} e6 {[%emt 0:01:43]} 4. Bd3 {[%emt 0:02:16]} Bd6 {[%emt 0:02:10]} 5. b3 {[%emt 0:00:26]} O-O {[%emt 0:03:01]} 6. Bb2 {[%emt 0:00:17]} b6 {[%emt 0:07:02]} 7. O-O {[%emt 0:00:42]} Na6 {[%emt 0:04:20]} 8. a3 {[%emt 0:01:03]} c5 {[%emt 0:02:45]} 9. Ne5 {[%emt 0:01:13]} Bb7 {[%emt 0:16:59]} 10. Nd2 {[%emt 0:02:17]} Re8 {[%emt 0:08:50]} 11. Qf3 {[%emt 0:03:01]} Qc7 {[%emt 0:01:16]} 12. Qh3 {[%emt 0:04:10]} h6 {[%emt 0:01:25]} 13. f4 {[%emt 0:03:37]} Ne4 {[%emt 0:01:55]} 14. Bxe4 {[%emt 0:00:54]} dxe4 {[%emt 0:00:06]} 15. Ndc4 {[%emt 0:06:17]} Bf8 {[%emt 0:05:39]} 16. f5 {[%emt 0:05:10]} b5 {[%emt 0:04:57]} 17. fxe6 {[%emt 0:02:17]} f6 {[%emt 0:03:44]} 18. Ng4 {[%emt 0:04:40]} bxc4 {[%emt 0:03:20]} 19. Nxh6+ {[%emt 0:01:13]} gxh6 {[%emt 0:05:08]} 20. Rxf6 {[%emt 0:00:40]} Bg7 {[%emt 0:12:34]} 21. Rf7 {[%emt 0:00:59]} Re7 {[%emt 0:00:42]} 22. Raf1 {[%emt 0:00:50]} Rf8 {[%emt 0:03:10]} 23. Rxf8+ {[%emt 0:02:00]} Bxf8 {[%emt 0:00:08]} 24. d5 {[%emt 0:03:06]} Bg7 {[%emt 0:06:08]} 25. Qf5 {[%emt 0:07:07]} Qd8 {[%emt 0:02:15]} 26. Qg6 {[%emt 0:12:57]} Qxd5 {[%emt 0:02:11]} 27. Bxg7 {[%emt 0:18:22]} Rxg7 {[%emt 0:00:16]} 28. e7 {[%emt 0:09:26]} Rxg6 {[%emt 0:00:43]} 29. e8=Q+ {[%emt 0:00:03]} Kh7 {[%emt 0:00:32]} 30. Rf8 {[%emt 0:02:38]} Qd1+ {[%emt 0:00:36]} 31. Rf1 {[%emt 0:00:18]} Qg4 {[%emt 0:00:27]} 32. g3 {[%emt 0:00:48]} Rg7 {[%emt 0:00:19]} 33. Rf8 {[%emt 0:00:21]} Qd1+ {[%emt 0:00:48]} 34. Kg2 {[%emt 0:00:46]} Qe2+ {[%emt 0:00:28]} 35. Kh3 {[%emt 0:00:20]} Qg4+ {[%emt 0:00:35]} 36. Kg2 {[%emt 0:00:14]} Qe2+ {[%emt 0:00:29]} 37. Kh3 {[%emt 0:00:27]} Qg4+ {[%emt 0:00:25]} 38. Kg2 {[%emt 0:00:08]} Qf3+ {[%emt 0:00:36]} 39. Rxf3 {[%emt 0:00:34]} exf3+ {[%emt 0:00:03]} 40. Kf2 {[%emt 0:00:20]} cxb3 {[%emt 0:00:08]} 41. cxb3 {[%emt 0:00:07]} Nc7 {[%emt 0:00:45]} 42. Qe5 {[%emt 0:00:27]} Bd5 {[%emt 0:00:41]} 43. Qf5+ {[%emt 0:01:19]} Kh8 {[%emt 0:00:45]} 44. Qf8+ {[%emt 0:00:36]} Kh7 {[%emt 0:00:39]} 45. Qxc5 {[%emt 0:00:23]} Bxb3 {[%emt 0:00:05]} 46. Qf5+ {[%emt 0:01:37]} 1/2-1/2

[Event "POL-chT 2nd League Juniors 2020"]
[Site "Sypniewo"]
[Date "2020.10.23"]
[Round "1.16"]
[White "Glaz, Michal"]
[Black "Rozek, Michal"]
[Result "0-1"]
[ECO "C44"]
[WhiteElo "1180"]
[BlackElo "1442"]
[Annotator "NA"]
[PlyCount "124"]
[EventDate "2020.10.23"]
[EventType "team-tourn"]
[EventCountry "POL"]
[SourceTitle "playchess.com"]
[Source "ChessBase"]
[SourceQuality "1"]
[TimeControl "5400+30"]

1. e4 {[%emt 0:00:00]} e5 {[%emt 0:00:00]} 2. Nf3 {[%emt 0:00:00]} Nc6 {[%emt 0:00:00]} 3. d4 {[%emt 0:00:24]} exd4 {[%emt 0:00:00]} 4. Nxd4 {[%emt 0:00:24]} Nf6 {[%emt 0:00:03]} 5. Nc3 {[%emt 0:01:21]} Bc5 {[%emt 0:00:26]} 6. Nb3 {[%emt 0:01:36]} Bb6 {[%emt 0:04:46]} 7. Qe2 {[%emt 0:02:39]} O-O {[%emt 0:03:59]} 8. Be3 {[%emt 0:03:12]} Re8 {[%emt 0:03:14]} 9. f3 {[%emt 0:03:09]} Qe7 {[%emt 0:03:49]} 10. O-O-O {[%emt 0:05:40]} Bxe3+ {[%emt 0:13:55]} 11. Qxe3 {[%emt 0:00:29]} a5 {[%emt 0:02:12]} 12. g4 {[%emt 0:06:17]} a4 {[%emt 0:03:58]} 13. Nd2 {[%emt 0:06:35]} a3 {[%emt 0:04:34]} 14. b3 {[%emt 0:09:12]} Nb4 {[%emt 0:06:25]} 15. g5 {[%emt 0:13:41]} Qe5 {[%emt 0:06:36]} 16. Nc4 {[%emt 0:08:46]} Qxc3 {[%emt 0:04:05]} 17. Qxc3 {[%emt 0:06:16]} Nxa2+ {[%emt 0:00:23]} 18. Kd2 {[%emt 0:00:58]} Nxc3 {[%emt 0:00:24]} 19. Kxc3 {[%emt 0:00:10]} Nh5 {[%emt 0:08:01]} 20. Ra1 {[%emt 0:05:01]} Nf4 {[%emt 0:07:56]} 21. Rxa3 {[%emt 0:02:34]} Rxa3 {[%emt 0:01:09]} 22. Nxa3 {[%emt 0:00:06]} d5 {[%emt 0:01:33]} 23. Bd3 {[%emt 0:03:20]} Nxd3 {[%emt 0:04:05]} 24. cxd3 {[%emt 0:02:16]} c6 {[%emt 0:06:38]} 25. Nc2 {[%emt 0:03:06]} dxe4 {[%emt 0:01:25]} 26. dxe4 {[%emt 0:03:05]} Rd8 {[%emt 0:01:47]} 27. Ne3 {[%emt 0:02:58]} Kf8 {[%emt 0:02:46]} 28. Rd1 {[%emt 0:03:37]} Rxd1 {[%emt 0:02:23]} 29. Nxd1 {[%emt 0:00:03]} Ke7 {[%emt 0:00:51]} 30. Kd4 {[%emt 0:04:10]} b6 {[%emt 0:01:43]} 31. b4 {[%emt 0:00:38]} Kd6 {[%emt 0:01:07]} 32. e5+ {[%emt 0:00:56]} Ke6 {[%emt 0:00:15]} 33. Ne3 {[%emt 0:00:02]} c5+ {[%emt 0:00:49]} 34. bxc5 {[%emt 0:01:53]} bxc5+ {[%emt 0:00:03]} 35. Ke4 {[%emt 0:00:55]} Bb7+ {[%emt 0:00:41]} 36. Kf4 {[%emt 0:00:00]} Bd5 {[%emt 0:01:01]} 37. h4 {[%emt 0:01:01]} Bb3 {[%emt 0:01:21]} 38. h5 {[%emt 0:01:15]} c4 {[%emt 0:00:59]} 39. Ke4 {[%emt 0:00:38]} c3 {[%emt 0:00:20]} 40. f4 {[%emt 0:00:35]} c2 {[%emt 0:01:07]} 41. f5+ {[%emt 0:00:07]} Ke7 {[%emt 0:00:54]} 42. f6+ {[%emt 0:00:55]} gxf6 {[%emt 0:00:56]} 43. exf6+ {[%emt 0:00:17]} Ke6 {[%emt 0:00:18]} 44. Nxc2 {[%emt 0:00:56]} Bxc2+ {[%emt 0:00:05]} 45. Kf4 {[%emt 0:00:09]} Kd5 {[%emt 0:00:58]} 46. g6 {[%emt 0:00:06]} hxg6 {[%emt 0:00:19]} 47. h6 {[%emt 0:00:19]} g5+ {[%emt 0:00:08]} 48. Kxg5 {[%emt 0:00:51]} Bh7 {[%emt 0:00:21]} 49. Kf4 {[%emt 0:00:07]} Ke6 {[%emt 0:00:07]} 50. Kg5 {[%emt 0:00:09]} Ke5 {[%emt 0:00:07]} 51. Kg4 {[%emt 0:01:15]} Kxf6 {[%emt 0:00:07]} 52. Kf4 {[%emt 0:00:04]} Kg6 {[%emt 0:00:18]} 53. Ke5 {[%emt 0:00:03]} f5 {[%emt 0:00:21]} 54. Kf4 {[%emt 0:00:09]} Kxh6 {[%emt 0:00:11]} 55. Kf3 {[%emt 0:00:23]} Kg5 {[%emt 0:00:05]} 56. Kg3 {[%emt 0:00:05]} f4+ {[%emt 0:00:04]} 57. Kf3 {[%emt 0:00:06]} Bf5 {[%emt 0:00:14]} 58. Kf2 {[%emt 0:00:05]} Kg4 {[%emt 0:00:26]} 59. Kg2 {[%emt 0:00:08]} f3+ {[%emt 0:00:11]} 60. Kf2 {[%emt 0:00:04]} Kf4 {[%emt 0:00:07]} 61. Kf1 {[%emt 0:00:06]} Bd3+ {[%emt 0:00:08]} 62. Kf2 {[%emt 0:00:03]} Ke4 {[%emt 0:00:15]} 0-1

[Event "POL-chT 2nd League Juniors 2020"]
[Site "Sypniewo"]
[Date "2020.10.23"]
[Round "1.17"]
[White "Hertlein, Irena"]
[Black "Zablocka, Katarzyna"]
[Result "1-0"]
[ECO "D00"]
[WhiteElo "1893"]
[BlackElo "1286"]
[Annotator "NA"]
[PlyCount "72"]
[EventDate "2020.10.23"]
[EventType "team-tourn"]
[EventCountry "POL"]
[SourceTitle "playchess.com"]
[Source "ChessBase"]
[SourceQuality "1"]
[TimeControl "5400+30"]

1. d4 {[%emt 0:00:00]} d5 {[%emt 0:00:00]} 2. Bf4 {[%emt 0:00:00]} Nf6 {[%emt 0:00:10]} 3. e3 {[%emt 0:00:01]} e6 {[%emt 0:01:08]} 4. Nf3 {[%emt 0:00:26]} c5 {[%emt 0:02:32]} 5. c3 {[%emt 0:00:18]} Nc6 {[%emt 0:01:22]} 6. Nbd2 {[%emt 0:01:48]} Bd6 {[%emt 0:01:09]} 7. Bg3 {[%emt 0:00:26]} Qe7 {[%emt 0:00:40]} 8. Ne5 {[%emt 0:01:07]} Nd7 {[%emt 0:01:34]} 9. f4 {[%emt 0:12:30]} O-O {[%emt 0:09:44]} 10. Bd3 {[%emt 0:02:51]} f5 {[%emt 0:06:12] D02: 1 d4 d5 2 Nf3 sidelines, including 2...Nf6 3 g3 and 2...Nf6 3 Bf4.} 11. Qe2 {[%emt 0:19:59]} Nf6 {[%emt 0:12:16]} 12. Bh4 {[%emt 0:01:04]} Qc7 {[%emt 0:03:19] [#]} 13. Bxf6 $146 {[%emt 0:00:45]} ({Predecessor:} 13. O-O Bd7 14. Bxf6 gxf6 15. Nxd7 Qxd7 16. Rf3 Kh8 17. Rh3 Rg8 18. Qh5 {½-½ (108) Diaz,C-Vazquez Massaro,M ICC INT 2009}) 13... Rxf6 {[%emt 0:03:47]} 14. g4 {[%emt 0:05:28]} Be7 {[%emt 0:05:22]} 15. gxf5 {[%emt 0:04:25]} exf5 {[%emt 0:02:20]} 16. Ndf3 {[%emt 0:03:31]} c4 {[%emt 0:06:43]} 17. Bc2 {[%emt 0:00:43]} b5 {[%emt 0:01:24]} 18. a3 {[%emt 0:15:32]} a5 {[%emt 0:04:20]} 19. Rg1 {[%emt 0:12:19]} Bf8 {[%emt 0:06:45]} 20. Ng5 {[%emt 0:03:42]} h6 {[%emt 0:13:42]} 21. Ngf3 {[%emt 0:00:23]} Ne7 {[%emt 0:00:45]} 22. h4 {[%emt 0:02:50]} Raa6 {[%emt 0:02:28]} 23. h5 {[%emt 0:00:34]} Bd7 {[%emt 0:01:15]} 24. Nh4 {[%emt 0:03:45]} Be8 {[%emt 0:01:36]} 25. Kd2 {[%emt 0:00:21]} Kh8 {[%emt 0:01:22]} 26. Qf3 {[%emt 0:04:00]} Qb7 {[%emt 0:01:45]} 27. Qh3 {[%emt 0:02:32]} Qc8 {[%emt 0:01:29]} 28. Nhg6+ {[%emt 0:00:39]} Bxg6 {[%emt 0:01:00]} 29. Nxg6+ {[%emt 0:01:48]} Nxg6 {[%emt 0:01:00]} 30. Rxg6 {[%emt 0:00:21]} Qd7 {[%emt 0:01:09] [#]} 31. Bxf5 $1 {[%emt 0:00:41]} Qe7 {[%emt 0:04:08]} 32. Bc2 {[%emt 0:00:29]} Rxg6 {[%emt 0:01:37]} 33. Bxg6 {[%emt 0:00:35]} Qd8 {[%emt 0:00:32]} 34. Bc2 {[%emt 0:00:28]} Qe8 {[%emt 0:01:00]} 35. Qf5 {[%emt 0:00:16]} g6 {[%emt 0:01:12]} 36. hxg6 $18 {[%emt 0:00:11]} Qe6 1-0

[Event "POL-chT 2nd League Juniors 2020"]
[Site "Sypniewo"]
[Date "2020.10.23"]
[Round "1.18"]
[White "Gaczol, Julia"]
[Black "Lajdamik, Anna"]
[Result "0-1"]
[ECO "B12"]
[WhiteElo "1360"]
[BlackElo "1292"]
[Annotator "NA"]
[PlyCount "103"]
[EventDate "2020.10.23"]
[EventType "team-tourn"]
[EventCountry "POL"]
[SourceTitle "playchess.com"]
[Source "ChessBase"]
[SourceQuality "1"]
[TimeControl "5400+30"]

1. e4 {[%emt 0:00:00]} c6 {[%emt 0:00:00]} 2. d4 {[%emt 0:00:00]} d5 {[%emt 0:00:00]} 3. e5 {[%emt 0:00:00]} c5 {[%emt 0:00:37]} 4. dxc5 {[%emt 0:00:28]} e6 {[%emt 0:00:33]} 5. Be3 {[%emt 0:00:45]} Nd7 {[%emt 0:00:48]} 6. Bb5 {[%emt 0:01:39]} Ne7 {[%emt 0:00:52]} 7. c3 {[%emt 0:08:42]} Nc6 {[%emt 0:02:09]} 8. Nf3 {[%emt 0:16:23]} Bxc5 {[%emt 0:04:17]} 9. Bxc5 {[%emt 0:04:32]} Nxc5 {[%emt 0:00:15]} 10. Nd4 {[%emt 0:07:42]} Qb6 {[%emt 0:08:39]} 11. Nd2 {[%emt 0:09:33]} O-O {[%emt 0:03:47]} 12. Bxc6 {[%emt 0:11:25]} bxc6 {[%emt 0:00:28]} 13. N2b3 {[%emt 0:01:17]} Nxb3 {[%emt 0:00:37]} 14. Qxb3 {[%emt 0:01:10]} c5 {[%emt 0:09:05]} 15. Qxb6 {[%emt 0:04:24]} axb6 {[%emt 0:00:11]} 16. Nb5 {[%emt 0:00:45]} f6 {[%emt 0:00:43]} 17. exf6 {[%emt 0:09:46]} Rxf6 {[%emt 0:00:30]} 18. f3 {[%emt 0:05:13]} Ba6 {[%emt 0:06:18]} 19. Nc7 {[%emt 0:01:39]} Ra7 {[%emt 0:00:20]} 20. Nxa6 {[%emt 0:00:34]} Rxa6 {[%emt 0:00:08]} 21. a3 {[%emt 0:01:46]} b5 {[%emt 0:04:21]} 22. Rd1 {[%emt 0:04:18]} b4 {[%emt 0:07:03]} 23. axb4 {[%emt 0:01:58]} cxb4 {[%emt 0:00:07]} 24. cxb4 {[%emt 0:07:04]} Rf4 {[%emt 0:00:57]} 25. b5 {[%emt 0:00:46]} Rb6 {[%emt 0:00:16]} 26. Kf2 {[%emt 0:00:39]} Rxb5 {[%emt 0:00:40]} 27. Rd2 {[%emt 0:00:12]} Rfb4 {[%emt 0:02:05]} 28. Rb1 {[%emt 0:00:15]} Kf7 {[%emt 0:03:54]} 29. Ke2 {[%emt 0:00:58]} e5 {[%emt 0:01:06]} 30. Kd3 {[%emt 0:00:30]} Rd4+ {[%emt 0:00:56]} 31. Ke2 {[%emt 0:00:36]} Rdb4 {[%emt 0:00:31]} 32. Kd3 {[%emt 0:00:05]} Ke6 {[%emt 0:00:32]} 33. Kc3 {[%emt 0:00:44]} Rb3+ {[%emt 0:04:16]} 34. Kc2 {[%emt 0:00:16]} d4 {[%emt 0:01:20]} 35. Rd3 {[%emt 0:00:35]} R3b4 {[%emt 0:02:43]} 36. b3 {[%emt 0:00:46]} Kd5 {[%emt 0:01:01]} 37. Re1 {[%emt 0:00:27]} Rc5+ {[%emt 0:01:17]} 38. Kb2 {[%emt 0:00:13]} Rb6 {[%emt 0:01:17]} 39. Rc1 {[%emt 0:00:53]} Rxc1 {[%emt 0:00:48]} 40. Kxc1 {[%emt 0:00:04]} e4 {[%emt 0:00:12]} 41. fxe4+ {[%emt 0:00:15]} Kxe4 {[%emt 0:00:07]} 42. Kd2 {[%emt 0:01:06]} Ra6 {[%emt 0:00:58]} 43. Ke2 {[%emt 0:00:10]} Ra2+ {[%emt 0:01:08]} 44. Rd2 {[%emt 0:00:10]} d3+ {[%emt 0:00:28]} 45. Ke1 {[%emt 0:00:14]} Ra1+ {[%emt 0:00:08]} 46. Rd1 {[%emt 0:01:18]} Ra3 {[%emt 0:00:09]} 47. Rb1 {[%emt 0:00:39]} Ra2 {[%emt 0:01:01]} 48. b4 {[%emt 0:00:20]} Rxg2 {[%emt 0:02:21]} 49. Kf1 {[%emt 0:00:31]} Rxh2 {[%emt 0:00:32]} 50. Kg1 {[%emt 0:00:24]} Rc2 {[%emt 0:01:36]} 51. Kf1 {[%emt 0:00:39]} d2 {[%emt 0:00:25]} 52. Ke2 0-1